bitfinex-derivatives/quotes_BNBF0:USTF0_20250303
["timestamp","ask_amount","ask_price","bid_price","bid_amount"]
[1741040556707,0.34844419,573.98,573.47,0.32040284]
[1741040561421,0.34844419,573.98,573.46,6.32]
[1741040561617,0.34844419,573.98,573.47,0.32035066]
[1741040562421,0.34844419,573.98,573.48,0.999]
[1741040562623,0.34844419,573.98,573.49,0.32035066]
[1741040565026,1.27427585,575.73,573.49,0.32035066]
[1741040565526,0.34745144,575.62,573.49,0.32035066]
[1741040566322,0.34745144,575.62,573.5,1.502]
[1741040566527,0.34745144,575.62,573.51,0.32035066]
[1741040566729,0.34745144,575.62,573.52,0.32035066]
[1741040566925,0.34745144,575.62,573.53,0.32035066]
[1741040567127,0.34745144,575.62,573.54,0.32035066]
[1741040567327,0.34745144,575.62,573.55,0.32035066]
[1741040567527,0.34745144,575.62,573.56,0.32035066]
[1741040567725,0.34745144,575.62,573.5,1.502]
[1741040567726,0.34745144,575.62,573.51,0.32035066]
[1741040567928,0.34745144,575.62,573.52,0.32035066]
[1741040568127,1.81820557,575.61,573.51,0.32035066]
[1741040568431,0.34751785,575.51,573.52,0.32035066]
[1741040568631,0.34751785,575.51,573.53,0.32035066]
[1741040568831,0.34751785,575.51,573.53,1.701]
[1741040569130,0.34751785,575.51,573.54,0.32035066]
[1741040569527,0.34751785,575.51,573.55,0.32028527]
[1741040569723,0.34751785,575.51,573.56,0.32028527]
[1741040570023,0.34751785,575.51,573.57,0.32028527]
[1741040570224,0.34751785,575.51,573.54,0.32028527]
[1741040570432,0.34751785,575.51,573.66,1.29429039]
[1741040571129,1.81878364,575.5,573.66,1.29429039]
[1741040573236,1.81878364,575.5,573.66,2.83329039]
[1741040573633,1.81878364,575.5,573.66,1.539]
[1741040573932,0.34751785,575.51,573.66,1.539]
[1741040574131,1.81909263,575.49,573.66,1.539]
[1741040575337,1.81909263,575.49,573.66,2.526]
[1741040576731,0.347542,575.47,573.66,2.526]
[1741040577338,1.27427585,575.04,573.66,2.526]
[1741040577637,0.34781398,575.02,573.66,2.526]
[1741040579540,0.34781398,575.02,573.67,0.32036279]
[1741040579739,0.34781398,575.02,573.66,2.526]
[1741040579934,0.34781398,575.02,573.67,0.32033861]
[1741040580138,1.81890247,575.01,573.67,0.32033861]
[1741040580338,0.34783213,574.99,573.67,1.51033861]
[1741040580636,0.34783213,574.99,573.68,0.32033861]
[1741040581041,0.34783213,574.99,573.67,1.19]
[1741040582641,0.34783213,574.99,573.67,2.838]
[1741040583137,0.34783213,574.99,573.67,3.866]
[1741040586145,1.81952063,574.98,573.67,3.866]
[1741040586359,0.34785028,574.96,573.67,3.866]
[1741040587445,0.34785028,574.96,573.67,4.938]
[1741040589443,1.81903716,574.95,573.67,6.482]
[1741040589642,0.34786843,574.93,573.67,6.482]
[1741040590244,0.34786843,574.93,573.67,7.599]
[1741040590443,0.34786843,574.93,573.68,0.32031012]
[1741040590647,0.34786843,574.93,573.67,7.599]
[1741040590848,0.34786843,574.93,573.68,0.32030681]
[1741040592053,1.81896586,574.92,573.68,0.32030681]
[1741040592249,0.34788658,574.9,573.68,0.32030681]
[1741040592755,0.34788658,574.9,573.69,0.32028913]
[1741040592949,0.34788658,574.9,573.7,0.32028913]
[1741040593151,0.34788658,574.9,573.67,7.599]
[1741040593351,0.34788658,574.9,573.68,0.32028218]
[1741040593655,0.34788658,574.9,573.7,1.29429039]
[1741040593853,0.34788658,574.9,573.71,0.32028218]
[1741040595555,0.34788658,574.9,573.72,1.338]
[1741040595753,0.34788658,574.9,573.73,0.32028218]
[1741040596559,0.34788658,574.9,573.77,1.29429039]
[1741040598357,0.34788658,574.9,573.75,1.29429039]
[1741040598555,0.34788658,574.9,573.77,1.059]
[1741040599357,1.81837183,574.89,573.77,1.059]
[1741040599557,0.34790474,574.87,573.77,1.059]
[1741040600757,0.34790474,574.87,573.78,0.32025285]
[1741040601157,0.34790474,574.87,573.78,0.79325285]
[1741040601358,0.34790474,574.87,573.78,0.473]
[1741040601660,0.34790474,574.87,573.78,1.97]
[1741040602455,0.34790474,574.87,573.79,0.32025339]
[1741040604164,0.34790474,574.87,573.78,1.97]
[1741040607065,1.81845893,574.86,573.78,1.97]
[1741040607464,0.3479229,574.84,573.78,1.97]
[1741040610266,1.81845893,574.83,573.78,1.97]
[1741040610465,0.34794105,574.81,573.78,1.97]
[1741040611465,0.34794105,574.81,573.78,3.091]
[1741040612763,0.34794105,574.81,573.78,4.067]
[1741040615570,0.34794105,574.81,573.78,5.173]
[1741040617675,0.34794105,574.81,573.79,0.32021831]
[1741040619371,0.34794105,574.81,573.79,1.79421831]
[1741040619567,0.34794105,574.81,573.8,0.32021831]
[1741040620171,0.34794105,574.81,573.85,1.29429039]
[1741040622774,0.34794105,574.81,573.9,1.29429039]
[1741040623369,0.34794105,574.81,573.9,2.86129039]
[1741040625076,0.34794105,574.81,573.9,4.39229039]
[1741040625670,0.34794105,574.81,573.91,0.32017305]
[1741040626071,0.34794105,574.81,573.9,4.39229039]
[1741040626275,0.34794105,574.81,574.03,1.29429039]
[1741040627079,0.34794105,574.81,574.03,2.57629039]
[1741040627777,0.34794105,574.81,574.03,3.56829039]
[1741040628774,0.34794105,574.81,574.03,2.274]
[1741040631386,0.34794105,574.81,574.03,2.747]
[1741040631787,0.34794105,574.81,574.03,5.072]
[1741040638483,0.34794105,574.81,574.04,0.32005843]
[1741040638989,0.34794105,574.81,574.03,5.072]
[1741040639287,0.34794105,574.81,574.04,0.32006835]
[1741040639483,0.34794105,574.81,574.08,1.29429039]
[1741040639688,0.34794105,574.81,574.09,0.32006835]
[1741040640585,0.34794105,574.81,574.1,2.682]
[1741040641688,0.34794105,574.81,574.11,0.32005874]
[1741040641891,0.34794105,574.81,574.1,2.682]
[1741040642388,0.34794105,574.81,574.12,1.29429039]
[1741040644194,0.34794105,574.81,574.13,1.308]
[1741040652016,0.34794105,574.81,574.14,1.367]
[1741040653713,0.34794105,574.81,574.15,0.473]
[1741040657010,0.34794105,574.81,574.15,1.766]
[1741040657213,0.34794105,574.81,574.15,3.024]
[1741040658113,0.34794105,574.81,574.15,4.553]
[1741040660815,0.34794105,574.81,574.15,5.524]
[1741040661319,0.34794105,574.81,574.15,6.81829039]
[1741040664413,0.34794105,574.81,574.25,1.29429039]
[1741040666520,0.34794105,574.81,574.15,5.524]
[1741040666521,0.34794105,574.81,574.23,1.29429039]
[1741040666919,0.34794105,574.81,574.24,1.415]
[1741040669323,0.34794105,574.81,574.25,1.29429039]
[1741040671417,0.34794105,574.81,574.32,1.29429039]
[1741040672419,0.34794105,574.81,574.33,1.522]
[1741040674220,0.34794105,574.81,574.34,1.05]
[1741040675119,0.34794105,574.81,574.35,1.389]
[1741040677125,0.34794105,574.81,574.36,1.055]
[1741040680726,0.34794105,574.81,574.37,1.193]
[1741040682635,0.34794105,574.81,574.37,2.48729039]
[1741040688042,0.34794105,574.81,574.37,1.193]
[1741040690442,0.34794105,574.81,574.38,1.738]
[1741040691242,0.34794105,574.81,574.39,1.503]
[1741040691444,0.34794105,574.81,574.39,3.023]
[1741040696540,0.34794105,574.81,574.4,1.465]
[1741040696744,0.34794105,574.81,574.4,2.796]
[1741040702953,0.34794105,574.81,574.4,4.036]
[1741040704853,0.34794105,574.81,574.4,5.592]
[1741040710256,0.34794105,574.81,574.4,6.926]
[1741040710656,0.34794105,574.81,574.4,8.39460035]
[1741040710861,0.34794105,574.81,574.4,6.943]
[1741040714363,0.34794105,574.81,574.4,7.982]
[1741040739186,1.81830849,574.8,574.4,7.982]
[1741040739693,1.81830849,574.8,574.4,2.373]
[1741040740290,0.34795316,574.79,574.4,2.373]
[1741040740493,0.34795316,574.79,574.4,1.039]
[1741040744497,0.34795316,574.79,574.38,6.105]
[1741040747692,0.34795316,574.79,574.38,7.697]
[1741040756200,0.34795316,574.79,574.38,9.099]
[1741040765807,1.27427585,575.5,574.38,9.099]
[1741040766208,1.27427585,575.5,574.38,5.502]
[1741040766609,1.27427585,575.5,574.38,3.91]
[1741040766910,1.81749337,575.49,574.38,3.91]
[1741040767111,2.68236494,575.49,574.38,3.91]
[1741040768110,1.81749337,575.49,574.38,3.91]
[1741040768907,0.86487157,575.58,574.38,3.91]
[1741040769110,1.27427585,575.59,574.38,3.91]
[1741040769308,1.81743009,575.57,574.39,0.473]
[1741040769510,1.81743009,575.57,574.39,4.482]
[1741040769714,1.81743009,575.57,574.4,1.429]
[1741040769916,1.81743009,575.57,574.4,2.717]
[1741040774914,0.86428826,575.69,574.4,4.159]
[1741040775115,1.27427585,575.7,574.4,4.159]
[1741040775312,1.81727982,575.68,574.4,4.159]
[1741040777912,0.86428826,575.97,574.4,4.159]
[1741040778115,0.86428826,575.96,574.4,4.159]
[1741040778318,1.81728773,575.67,574.4,4.159]
[1741040778516,0.86428826,575.94,574.4,4.159]
[1741040778716,0.86428826,575.93,574.4,4.159]
[1741040779018,0.86428826,575.92,574.4,4.159]
[1741040779216,0.86428826,575.91,574.4,4.159]
[1741040779418,0.86428826,575.9,574.4,5.233]
[1741040779614,0.86428826,575.98,574.4,5.233]
[1741040779816,0.86428826,575.97,574.4,5.233]
[1741040780019,7.46784033,576.4,574.4,5.233]
[1741040780020,1.81711377,575.89,574.4,5.233]
[1741040780215,1.27427585,575.98,574.4,5.233]
[1741040780216,0.86428826,575.95,574.4,5.233]
[1741040780522,1.81712167,575.88,574.4,5.233]
[1741040780821,0.86428826,575.93,574.4,5.233]
[1741040781021,0.86428826,575.97,574.4,5.233]
[1741040781224,1.81712958,575.87,574.4,5.233]
[1741040781423,0.86428826,575.95,574.4,5.233]
[1741040781623,0.86428826,575.94,574.4,5.233]
[1741040781825,0.86428826,575.93,574.4,5.233]
[1741040782017,0.86428826,575.97,574.4,5.233]
[1741040782226,0.86428826,575.96,574.4,5.233]
[1741040782419,0.86428826,575.95,574.4,5.233]
[1741040782624,0.86428826,575.94,574.4,5.233]
[1741040782825,0.86428826,575.93,574.4,5.233]
[1741040783026,0.86428826,575.99,574.4,5.233]
[1741040783222,0.86428826,575.98,574.4,5.233]
[1741040783417,1.81709005,575.92,574.4,5.233]
[1741040783626,0.86428826,575.96,574.4,6.453]
[1741040783829,0.86428826,575.95,574.4,6.453]
[1741040784017,0.86428826,575.94,574.4,6.453]
[1741040784224,0.86428826,575.99,574.4,6.453]
[1741040784526,1.27427585,576.0,574.4,6.453]
[1741040784527,0.86428826,575.98,574.4,6.453]
[1741040784727,0.86428826,575.97,574.4,6.453]
[1741040784920,1.27427585,575.96,574.4,6.453]
[1741040785527,1.27427585,575.96,574.4,7.634]
[1741040786222,1.81692402,575.95,574.4,7.634]
[1741040787122,2.68121228,575.95,574.4,7.634]
[1741040787629,1.27427585,575.86,574.4,7.634]
[1741040790535,1.81705051,575.85,574.4,7.634]
[1741040790735,2.68133877,575.85,574.4,7.634]
[1741040790939,2.68133877,575.85,574.4,9.044]
[1741040791635,1.81705051,575.85,574.4,9.044]
[1741040792538,1.81705051,575.85,574.4,10.312]
[1741040793038,0.86428826,575.86,574.4,10.312]
[1741040793235,1.81685288,575.84,574.4,10.312]
[1741040793731,1.81685288,575.84,574.4,10.785]
[1741040795931,0.86428826,576.25,574.4,10.785]
[1741040796135,1.27427585,576.26,574.4,10.785]
[1741040796437,1.81640243,576.24,574.4,10.785]
[1741040798939,0.86428826,576.25,574.4,10.785]
[1741040799132,1.27427585,576.26,574.4,10.785]
[1741040799332,1.81636292,576.24,574.4,10.785]
[1741040802042,0.85973283,576.31,574.4,10.785]
[1741040802241,0.34704749,576.29,574.4,10.785]
[1741040802440,1.81637082,576.23,574.4,10.785]
[1741040802642,0.34704749,576.29,574.4,10.785]
[1741040803144,0.85973283,576.28,574.4,10.785]
[1741040803340,0.34706556,576.26,574.4,10.785]
[1741040803737,1.27427585,575.97,574.4,10.785]
[1741040804945,0.34725236,575.95,574.4,10.785]
[1741040805644,1.27427585,575.9,574.4,10.785]
[1741040805841,0.34729457,575.88,574.4,10.785]
[1741040808846,1.27427585,575.87,574.4,10.785]
[1741040809045,0.34731266,575.85,574.4,10.785]
[1741040811246,1.81653675,575.84,574.4,10.785]
[1741040811449,0.34733076,575.82,574.4,10.785]
[1741040813342,0.34733076,575.82,574.41,0.31990269]
[1741040814150,0.34733076,575.82,574.4,1.268]
[1741040814350,0.34733076,575.82,574.41,0.31990428]
[1741040814747,0.34733076,575.82,574.42,1.29429039]
[1741040816742,0.34733076,575.82,574.42,5.24629039]
[1741040816943,0.34733076,575.82,574.42,9.77529039]
[1741040817148,1.8167027,575.81,574.42,9.77529039]
[1741040817348,0.34734885,575.79,574.42,9.77529039]
[1741040818652,0.34734885,575.79,574.42,8.481]
[1741040819744,0.34734885,575.79,574.42,9.766]
[1741040820552,1.81657626,575.78,574.42,9.766]
[1741040820748,0.34736695,575.76,574.42,9.766]
[1741040823349,1.81639453,575.75,574.42,9.766]
[1741040826756,1.27427585,575.72,574.42,9.766]
[1741040827156,0.34740316,575.7,574.42,9.766]
[1741040829357,1.81719284,575.69,574.42,9.766]
[1741040829660,0.34742126,575.67,574.42,9.766]
[1741040832356,1.81729564,575.66,574.42,9.766]
[1741040833860,2.68278569,575.66,574.42,9.766]
[1741040834953,0.86549005,575.66,574.42,9.766]
[1741040835157,0.34742126,575.67,574.42,9.766]
[1741040835357,1.81746173,575.65,574.42,9.766]
[1741040836361,0.3474454,575.63,574.42,9.766]
[1741040840559,1.81716121,575.62,574.42,9.766]
[1741040840762,0.34746351,575.6,574.42,9.766]
[1741040843265,1.27427585,575.51,574.42,9.766]
[1741040844264,1.81800768,575.5,574.42,9.766]
[1741040844459,2.6810916,575.5,574.42,9.766]
[1741040845969,1.81800768,575.5,574.42,9.766]
[1741040846864,0.34753596,575.48,574.42,9.766]
[1741040850365,1.8178494,575.47,574.42,9.766]
[1741040850974,0.34755408,575.45,574.42,9.766]
[1741040854275,1.81743009,575.44,574.42,9.766]
[1741040856074,0.34755408,575.45,574.42,9.766]
[1741040856277,1.81784149,575.43,574.42,9.766]
[1741040856573,0.34757824,575.41,574.42,9.766]
[1741040856972,0.34757824,575.41,574.42,11.055]
[1741040859382,1.81766741,575.4,574.42,11.055]
[1741040859568,0.34759637,575.38,574.42,11.055]
[1741040862175,1.81787314,575.37,574.42,11.055]
[1741040862375,0.34761449,575.35,574.42,11.055]
[1741040865286,1.81796019,575.34,574.42,11.055]
[1741040865478,0.34763262,575.32,574.42,11.055]
[1741040868381,1.8179048,575.31,574.42,11.055]
[1741040868888,0.34765075,575.29,574.42,11.055]
[1741040870482,2.67786443,575.31,574.42,11.055]
[1741040870682,1.8179048,575.31,574.42,11.055]
[1741040870885,1.27427585,575.19,574.42,11.055]
[1741040871187,1.81832432,575.18,574.42,11.055]
[1741040871983,2.67828395,575.18,574.42,11.055]
[1741040874088,1.81832432,575.18,574.42,11.055]
[1741040877087,1.27427585,575.06,574.42,11.055]
[1741040879700,1.27427585,575.06,574.42,3.932]
[1741040879900,2.13456576,575.16,574.42,3.932]
[1741040880300,1.81894209,575.05,574.42,3.932]
[1741040880599,0.86028991,575.15,574.42,3.932]
[1741040880794,1.27427585,575.16,574.42,3.932]
[1741040882600,1.81895001,575.15,574.42,3.932]
[1741040882897,1.27427585,574.91,574.42,3.932]
[1741040883404,1.81910056,574.9,574.42,3.932]
[1741040883598,2.67939047,574.9,574.42,3.932]
[1741040884597,2.67997061,574.9,574.42,3.932]
[1741040885709,1.81910056,574.9,574.42,3.932]
[1741040886003,0.86087005,575.04,574.42,3.932]
[1741040886205,1.8184906,574.89,574.42,3.932]
[1741040886603,0.86087005,575.04,574.42,3.932]
[1741040886804,1.27427585,575.05,574.42,3.932]
[1741040888202,0.86087005,575.2,574.42,3.932]
[1741040888403,1.27427585,575.56,574.42,3.932]
[1741040889107,1.81798394,575.55,574.42,3.932]
[1741040889324,0.34750577,575.53,574.42,3.932]
[1741040890903,0.86293494,575.52,574.42,3.932]
[1741040891109,0.34752389,575.5,574.42,3.932]
[1741040891308,0.86293494,575.49,574.42,3.932]
[1741040891505,0.86293494,575.48,574.42,3.932]
[1741040891709,0.34754804,575.46,574.42,3.932]
[1741040892405,1.81828473,575.45,574.42,3.932]
[1741040892803,1.27427585,575.42,574.42,3.932]
[1741040894004,0.34758428,575.4,574.42,3.932]
[1741040894706,1.27427585,575.33,574.42,3.932]
[1741040895108,0.34763866,575.31,574.42,3.932]
[1741040896711,1.27427585,575.25,574.42,3.932]
[1741040896910,0.34768701,575.23,574.42,3.932]
[1741040897612,1.81862523,575.22,574.42,3.932]
[1741040897807,0.3476991,575.21,574.42,3.932]
[1741040898513,1.81864899,575.2,574.42,3.932]
[1741040898712,0.34771119,575.19,574.42,3.932]
[1741040899114,0.34771119,575.19,574.42,6.392]
[1741040900008,0.34771119,575.19,574.42,7.588]
[1741040901211,1.81866483,575.18,574.42,7.588]
[1741040902710,0.34772328,575.17,574.42,7.588]
[1741040904116,0.34772328,575.17,574.42,8.815]
[1741040906123,0.34772328,575.17,574.42,10.127]
[1741040910224,1.81885494,575.16,574.42,10.127]
[1741040912023,0.86359331,575.15,574.42,10.127]
[1741040912626,2.68244825,575.16,574.42,10.127]
[1741040912829,1.81885494,575.16,574.42,10.127]
[1741040913027,0.34772328,575.17,574.42,10.127]
[1741040913230,1.8188391,575.15,574.42,10.127]
[1741040914431,1.27427585,575.08,574.42,10.127]
[1741040916528,0.34778374,575.07,574.42,10.127]
[1741040917228,0.34778374,575.07,574.42,8.815]
[1741040920332,1.27427585,575.05,574.42,8.815]
[1741040921231,0.34780189,575.04,574.42,8.815]
[1741040922632,1.81895793,575.03,574.42,8.815]
[1741040922828,0.34781398,575.02,574.42,8.815]
[1741040925228,1.81902132,575.01,574.42,7.642]
[1741040925432,0.34782608,575.0,574.42,7.642]
[1741040928239,0.34782608,575.0,574.42,6.355]
[1741040928439,1.81895793,574.99,574.42,6.355]
[1741040928639,0.34783818,574.98,574.42,6.355]
[1741040929139,0.34783818,574.98,574.42,5.159]
[1741040930640,1.81895793,574.99,574.42,5.159]
[1741040931139,0.86326503,575.06,574.42,5.159]
[1741040931340,1.81878364,574.98,574.42,7.111]
[1741040931640,1.27427585,574.95,574.42,7.111]
[1741040932242,1.27427585,574.95,574.42,8.303]
[1741040933938,1.27427585,574.98,574.42,8.303]
[1741040934138,1.81848268,574.94,574.42,8.303]
[1741040937044,0.86326503,574.97,574.42,8.303]
[1741040937244,1.27427585,574.98,574.42,8.303]
[1741040937440,1.81846684,574.96,574.42,8.303]
[1741040940147,0.86326503,575.51,574.42,8.303]
[1741040940343,1.27427585,575.53,574.42,8.303]
[1741040940344,0.86547153,575.5,574.42,8.303]
[1741040940545,1.81847476,574.95,574.42,8.303]
[1741040940744,0.86547153,575.52,574.42,8.303]
[1741040941147,1.27427585,575.53,574.42,8.303]
[1741040942050,1.81788105,575.52,574.42,8.303]
[1741040942845,3.0921569,575.52,574.42,8.303]
[1741040943043,0.86547153,575.51,574.42,8.303]
[1741040943552,0.86547153,575.51,574.42,8.776]
[1741040945651,1.81788105,575.52,574.42,8.776]
[1741040946052,0.86547153,575.74,574.42,8.776]
[1741040946246,0.86547153,575.73,574.42,8.776]
[1741040946449,0.86547153,575.72,574.42,10.233]
[1741040946651,0.86547153,575.71,574.42,10.233]
[1741040946850,0.86547153,575.7,574.42,10.233]
[1741040947053,0.86547153,575.69,574.42,10.233]
[1741040947254,0.86547153,575.68,574.42,10.233]
[1741040947452,0.86547153,575.67,574.42,10.233]
[1741040947653,0.86547153,575.66,574.42,10.233]
[1741040947853,0.86547153,575.65,574.42,10.233]
[1741040948153,0.86547153,575.64,574.42,10.233]
[1741040948352,0.86547153,575.63,574.42,10.233]
[1741040948552,0.86547153,575.62,574.42,10.233]
[1741040948848,0.86547153,575.61,574.42,10.233]
[1741040949055,1.27427585,575.82,574.42,10.233]
[1741040949056,0.86547153,575.6,574.42,10.233]
[1741040949250,0.34747558,575.58,574.42,10.233]
[1741040952256,1.81782566,575.57,574.42,10.233]
[1741040953160,0.3474937,575.55,574.42,10.233]
[1741040955256,1.81758039,575.54,574.42,10.233]
[1741040958260,0.34751181,575.52,574.42,10.233]
[1741040960657,0.34751181,575.52,574.42,11.354]
[1741040961357,1.81727192,575.51,574.42,11.354]
[1741040961958,0.34752993,575.49,574.42,11.354]
[1741040964564,1.81705842,575.48,574.42,11.354]
[1741040964969,0.34752993,575.49,574.42,11.354]
[1741040969967,0.34752993,575.49,574.43,0.31992202]
[1741040970568,0.34752993,575.49,574.44,0.3199111]
[1741040970772,0.34752993,575.49,574.45,0.3199111]
[1741040971069,0.34752993,575.49,574.42,2.578]
[1741040971263,0.34752993,575.49,574.43,0.31991049]
[1741040973473,0.34752993,575.49,574.43,7.70691049]
[1741040973677,0.34752993,575.49,574.44,0.31993025]
[1741040973974,0.34752993,575.49,574.43,7.387]
[1741040975973,0.34752993,575.49,574.43,8.533]
[1741040976374,2.16384545,575.49,574.43,8.533]
[1741040977576,2.16384545,575.49,574.43,9.883]
[1741040979076,0.34752993,575.49,574.43,9.883]
[1741040979473,1.81637873,575.48,574.43,9.883]
[1741040979874,0.34754804,575.46,574.43,9.883]
[1741040982478,1.81731937,575.45,574.43,9.883]
[1741040982977,0.34756616,575.43,574.43,9.883]
[1741040991374,1.81724028,575.42,574.43,9.883]
[1741040991580,0.34758428,575.4,574.43,9.883]
[1741040994479,1.817351,575.39,574.43,9.883]
[1741040994683,0.34760241,575.37,574.43,9.883]
[1741040997484,1.81724819,575.36,574.43,9.883]
[1741040997784,0.34762053,575.34,574.43,9.883]
[1741041000281,1.8175171,575.33,574.43,9.883]
[1741041000483,0.34763866,575.31,574.43,9.883]
[1741041006480,1.81757248,575.3,574.43,9.883]
[1741041006785,1.81757248,575.3,574.43,11.269]
[1741041009783,0.34765679,575.28,574.43,11.269]
[1741041037003,0.34765679,575.28,574.44,0.31985646]
[1741041037198,0.34765679,575.28,574.43,7.014]
[1741041037408,0.34765679,575.28,574.43,1.386]
[1741041038508,0.34765679,575.28,574.44,0.31986226]
[1741041038701,0.34765679,575.28,574.43,1.386]
[1741041039409,0.34765679,575.28,574.44,0.31986403]
[1741041040406,0.34765679,575.28,574.45,10.38]
[1741041040807,0.34765679,575.28,574.46,0.31986523]
[1741041041207,0.34765679,575.28,574.45,10.38]
[1741041041508,0.34765679,575.28,574.46,0.31986394]
[1741041042910,0.34765679,575.28,574.45,10.38]
[1741041052017,0.34765679,575.28,574.46,1.066]
[1741041055817,0.34765679,575.28,574.47,2.579]
[1741041057818,0.34765679,575.28,574.48,1.499]
[1741041060719,0.34765679,575.28,574.49,1.541]
[1741041062824,0.34765679,575.28,574.5,1.588]
[1741041064426,0.34765679,575.28,574.5,2.88229039]
[1741041064627,0.34765679,575.28,574.51,0.473]
[1741041066818,0.34765679,575.28,574.51,1.76729039]
[1741041068722,0.34765679,575.28,574.52,1.038]
[1741041069423,0.34765679,575.28,574.53,0.31977918]
[1741041069824,0.34765679,575.28,574.53,1.46977918]
[1741041070019,0.34765679,575.28,574.54,0.31977918]
[1741041073225,0.34765679,575.28,574.63,1.29429039]
[1741041073427,0.34765679,575.28,574.64,0.31973744]
[1741041075930,0.34765679,575.28,574.63,1.29429039]
[1741041076132,0.34765679,575.28,574.65,1.29429039]
[1741041077044,0.34765679,575.28,574.65,2.85329039]
[1741041078938,0.34765679,575.28,574.65,4.33329039]
[1741041079344,0.34765679,575.28,574.65,3.039]
[1741041082440,0.34765679,575.28,574.65,4.45]
[1741041083040,0.34765679,575.28,574.65,5.593]
[1741041086350,0.34765679,575.28,574.66,0.31974043]
[1741041086849,0.34765679,575.28,574.66,0.79274043]
[1741041087050,0.34765679,575.28,574.67,0.31974043]
[1741041087647,0.34765679,575.28,574.66,0.473]
[1741041089042,0.34765679,575.28,574.66,1.618]
[1741041091149,0.34765679,575.28,574.67,0.31972736]
[1741041091349,0.34765679,575.28,574.66,1.618]
[1741041091750,0.34765679,575.28,574.67,0.3197224]
[1741041093248,0.34765679,575.28,574.67,2.9887224]
[1741041093453,0.34765679,575.28,574.68,0.3197224]
[1741041095844,0.34765679,575.28,574.68,1.6007224]
[1741041096046,0.34765679,575.28,574.69,0.3197224]
[1741041096446,0.34765679,575.28,574.68,2.59]
[1741041096651,0.34765679,575.28,574.7,1.079]
[1741041096952,0.34765679,575.28,574.7,2.37329039]
[1741041097450,0.34765679,575.28,574.71,1.092]
[1741041098352,0.34765679,575.28,574.72,0.31971972]
[1741041099652,0.34765679,575.28,574.86,1.29429039]
[1741041100553,0.34765679,575.28,574.87,0.31967318]
[1741041101248,0.34765679,575.28,574.86,1.29429039]
[1741041101554,0.34765679,575.28,574.87,0.31966693]
[1741041102455,0.34765679,575.28,575.07,1.29429039]
[1741041106359,0.34765679,575.28,575.08,1.29429039]
[1741041109765,0.34765679,575.28,575.04,1.29429039]
[1741041112968,0.34765679,575.28,574.87,1.932]
[1741041112969,0.34765679,575.28,575.0,1.29429039]
[1741041115964,0.34765679,575.28,574.87,4.021]
[1741041121267,0.34765679,575.28,574.87,5.274]
[1741041121677,0.34765679,575.28,574.94,1.29429039]
[1741041123269,0.34765679,575.28,574.95,1.29429039]
[1741041125970,0.34765679,575.28,574.92,1.29429039]
[1741041128775,0.34765679,575.28,574.87,8.023]
[1741041153897,0.34765679,575.28,574.87,9.452]
[1741041228456,1.81716121,575.27,574.87,9.452]
[1741041228855,1.81716121,575.27,574.07,1.29429039]
[1741041230054,1.81716121,575.27,574.08,1.248]
[1741041230263,1.81716121,575.27,574.12,1.29429039]
[1741041231262,0.34765679,575.28,574.12,1.29429039]
[1741041231962,0.34765679,575.28,574.13,6.959]
[1741041232163,0.34765679,575.28,574.13,9.66]
[1741041234367,1.81756457,575.27,574.13,9.66]
[1741041234567,0.34767492,575.25,574.13,9.66]
[1741041236069,0.34767492,575.25,574.14,0.31994626]
[1741041236273,0.34767492,575.25,574.13,9.66]
[1741041236573,0.34767492,575.25,574.14,0.31993603]
[1741041237173,0.34767492,575.25,574.13,9.66]
[1741041240274,0.34767492,575.25,574.14,0.31990762]
[1741041240877,0.34767492,575.25,574.15,0.31990295]
[1741041241078,0.34767492,575.25,574.14,0.31990295]
[1741041241574,0.34767492,575.25,574.14,1.04617071]
[1741041242480,0.34767492,575.25,574.14,0.31990295]
[1741041245283,0.34767492,575.25,574.35,1.29429039]
[1741041246982,0.34767492,575.25,574.36,0.31988604]